[Event "Titled Tuesday Blitz January 03 Late 2023"]
[White "Bryakin, Mikhail"]
[Black "Jobava, Baadur"]
[WhiteFideId "4165314"]
[BlackFideId "13601520"]
[WhiteElo "2455"]
[BlackElo "2578"]
[Result "0-1"]
[Round "06"]
[TimeControl "180+2"]
[Date "2023.01.03"]
[WhiteClock "0:00:04"]
[BlackClock "0:00:59"]

1. c4 {[%clk 0:02:53]}  e5 {[%clk 0:02:59]} 2. Nc3 {[%clk 0:02:50]}  d6 {[%clk 0:03:00]} 3. g3 {[%clk 0:02:48]}  c6 {[%clk 0:03:00]} 4. Bg2 {[%clk 0:02:48]}  f5 {[%clk 0:03:00]} 5. d4 {[%clk 0:02:47]}  Be7 {[%clk 0:03:00]} 6. d5 {[%clk 0:02:30]}  Nf6 {[%clk 0:02:59]} 7. Nf3 {[%clk 0:02:28]}  O-O {[%clk 0:02:59]} 8. O-O {[%clk 0:02:25]}  Kh8 {[%clk 0:03:00]} 9. e4 {[%clk 0:02:21]}  cxd5 {[%clk 0:02:55]} 10. cxd5 {[%clk 0:02:16]}  Na6 {[%clk 0:02:54]} 11. exf5 {[%clk 0:02:13]}  Bxf5 {[%clk 0:02:55]} 12. Ng5 {[%clk 0:02:08]}  Nc7 {[%clk 0:02:49]} 13. Qb3 {[%clk 0:02:01]}  Nd7 {[%clk 0:02:45]} 14. Nge4 {[%clk 0:01:50]}  Nb6 {[%clk 0:02:45]} 15. Be3 {[%clk 0:01:46]}  Qd7 {[%clk 0:02:36]} 16. a4 {[%clk 0:01:35]}  Rfb8 {[%clk 0:02:13]} 17. a5 {[%clk 0:01:23]}  Nc8 {[%clk 0:02:12]} 18. f4 {[%clk 0:01:22]}  exf4 {[%clk 0:02:09]} 19. Rxf4 {[%clk 0:01:16]}  Bg6 {[%clk 0:01:49]} 20. Raf1 {[%clk 0:01:15]}  h6 {[%clk 0:01:48]} 21. Bd4 {[%clk 0:00:49]}  Kh7 {[%clk 0:01:46]} 22. Rf7 {[%clk 0:00:41]}  Ne8 {[%clk 0:01:40]} 23. Qd1 {[%clk 0:00:27]}  Kg8 {[%clk 0:01:33]} 24. Qf3 {[%clk 0:00:23]}  Qd8 {[%clk 0:01:26]} 25. Rf8+ {[%clk 0:00:18]}  Kh7 {[%clk 0:01:20]} 26. Bh3 {[%clk 0:00:17]}  Bxf8 {[%clk 0:01:19]} 27. Qxf8 {[%clk 0:00:17]}  Qe7 {[%clk 0:01:19]} 28. Qf4 {[%clk 0:00:08]}  b5 {[%clk 0:01:11]} 29. Bf5 {[%clk 0:00:04]}  Qf7 {[%clk 0:01:12]} 30. Bxg6+ {[%clk 0:00:03]}  Qxg6 {[%clk 0:01:13]} 31. Ne2 {[%clk 0:00:04]}  Rb7 {[%clk 0:01:12]} 32. g4 {[%clk 0:00:03]}  Re7 {[%clk 0:01:11]} 33. N2g3 {[%clk 0:00:03]}  Nc7 {[%clk 0:01:10]} 34. Nf5 {[%clk 0:00:03]}  Nxd5 {[%clk 0:01:10]} 35. Nxe7 {[%clk 0:00:04]}  Ncxe7 {[%clk 0:01:11]} 36. Qf3 {[%clk 0:00:02]}  Nc6 {[%clk 0:01:10]} 37. Bf2 {[%clk 0:00:02]}  Ne5 {[%clk 0:01:10]} 38. Qg2 {[%clk 0:00:02]}  Qxg4 {[%clk 0:01:10]} 39. Qxg4 {[%clk 0:00:02]}  Nxg4 {[%clk 0:01:10]} 40. Nxd6 {[%clk 0:00:03]}  a6 {[%clk 0:01:09]} 41. Bg3 {[%clk 0:00:03]}  Rd8 {[%clk 0:01:08]} 42. Rf7 {[%clk 0:00:03]}  Nde3 {[%clk 0:00:59]} 43. Ra7 {[%clk 0:00:04]}  Rf8 {[%clk 0:00:59]} 44. h3 {[%clk 0:00:04]}  Rf1# {[%clk 0:00:59]} 0-1


[Site "https://www.chess.com"]

[Event "Titled Tuesday Blitz January 03 Late 2023"]
[White "Shimanov, Aleksandr"]
[Black "Kuznetsov, Felix"]
[WhiteFideId "4198603"]
[BlackFideId "34147990"]
[WhiteElo "2581"]
[BlackElo "2254"]
[Result "0-1"]
[Round "06"]
[TimeControl "180+2"]
[Date "2023.01.03"]
[WhiteClock "0:00:15"]
[BlackClock "0:00:13"]

1. e4 {[%clk 0:02:52]}  c5 {[%clk 0:02:59]} 2. Nf3 {[%clk 0:02:52]}  Nc6 {[%clk 0:02:59]} 3. c3 {[%clk 0:02:51]}  d5 {[%clk 0:02:58]} 4. exd5 {[%clk 0:02:51]}  Qxd5 {[%clk 0:02:59]} 5. d4 {[%clk 0:02:51]}  Bf5 {[%clk 0:02:55]} 6. Be3 {[%clk 0:02:50]}  Nf6 {[%clk 0:02:54]} 7. dxc5 {[%clk 0:02:43]}  Qxd1+ {[%clk 0:02:54]} 8. Kxd1 {[%clk 0:02:44]}  O-O-O+ {[%clk 0:02:54]} 9. Kc1 {[%clk 0:02:43]}  Nd5 {[%clk 0:02:48]} 10. Nbd2 {[%clk 0:02:40]}  e5 {[%clk 0:02:44]} 11. Nb3 {[%clk 0:02:37]}  f6 {[%clk 0:02:36]} 12. Bc4 {[%clk 0:02:30]}  Be7 {[%clk 0:02:35]} 13. Bd2 {[%clk 0:02:25]}  g5 {[%clk 0:02:28]} 14. Re1 {[%clk 0:02:18]}  h5 {[%clk 0:02:28]} 15. a4 {[%clk 0:02:12]}  h4 {[%clk 0:02:26]} 16. a5 {[%clk 0:02:12]}  g4 {[%clk 0:02:22]} 17. Ng1 {[%clk 0:02:12]}  a6 {[%clk 0:02:21]} 18. Ne2 {[%clk 0:02:08]}  Kc7 {[%clk 0:02:13]} 19. Ra4 {[%clk 0:01:59]}  Rh7 {[%clk 0:02:03]} 20. Bxd5 {[%clk 0:01:40]}  Rxd5 {[%clk 0:02:03]} 21. Be3 {[%clk 0:01:41]}  Be6 {[%clk 0:01:51]} 22. Nd2 {[%clk 0:01:36]}  f5 {[%clk 0:01:47]} 23. g3 {[%clk 0:01:28]}  hxg3 {[%clk 0:01:28]} 24. hxg3 {[%clk 0:01:29]}  Rh2 {[%clk 0:01:28]} 25. b4 {[%clk 0:01:21]}  Rd8 {[%clk 0:01:21]} 26. Kc2 {[%clk 0:01:18]}  Bf6 {[%clk 0:01:14]} 27. Raa1 {[%clk 0:01:17]}  Rdh8 {[%clk 0:01:11]} 28. Rad1 {[%clk 0:01:16]}  Ne7 {[%clk 0:01:07]} 29. Nf4 {[%clk 0:01:09]}  Bf7 {[%clk 0:00:58]} 30. Nd3 {[%clk 0:01:09]}  Nd5 {[%clk 0:00:53]} 31. Nf1 {[%clk 0:01:01]}  e4 {[%clk 0:00:43]} 32. Nf4 {[%clk 0:00:34]}  Nxe3+ {[%clk 0:00:42]} 33. Nxe3 {[%clk 0:00:35]}  Rxf2+ {[%clk 0:00:42]} 34. Rd2 {[%clk 0:00:35]}  Rxd2+ {[%clk 0:00:37]} 35. Kxd2 {[%clk 0:00:36]}  Rh2+ {[%clk 0:00:37]} 36. Re2 {[%clk 0:00:37]}  Rxe2+ {[%clk 0:00:36]} 37. Nxe2 {[%clk 0:00:38]}  Be6 {[%clk 0:00:36]} 38. Nf4 {[%clk 0:00:38]}  Kd7 {[%clk 0:00:34]} 39. c4 {[%clk 0:00:37]}  Be5 {[%clk 0:00:34]} 40. Neg2 {[%clk 0:00:34]}  Bxc4 {[%clk 0:00:33]} 41. Ne3 {[%clk 0:00:24]}  Bxf4 {[%clk 0:00:27]} 42. gxf4 {[%clk 0:00:25]}  g3 {[%clk 0:00:20]} 43. Ke1 {[%clk 0:00:23]}  Be6 {[%clk 0:00:20]} 44. Kf1 {[%clk 0:00:23]}  Kc6 {[%clk 0:00:21]} 45. Nc2 {[%clk 0:00:22]}  Kd5 {[%clk 0:00:19]} 46. Kg2 {[%clk 0:00:21]}  Kc4 {[%clk 0:00:18]} 47. Kxg3 {[%clk 0:00:21]}  Kc3 {[%clk 0:00:18]} 48. Ne3 {[%clk 0:00:20]}  Kxb4 {[%clk 0:00:18]} 49. Kh4 {[%clk 0:00:20]}  Kxa5 {[%clk 0:00:16]} 50. Kg5 {[%clk 0:00:20]}  Kb4 {[%clk 0:00:12]} 51. Kf6 {[%clk 0:00:21]}  Bc8 {[%clk 0:00:12]} 52. Ke5 {[%clk 0:00:18]}  Kxc5 {[%clk 0:00:12]} 53. Nd5 {[%clk 0:00:17]}  b5 {[%clk 0:00:12]} 54. Ne7 {[%clk 0:00:16]}  e3 {[%clk 0:00:12]} 55. Nxc8 {[%clk 0:00:14]}  e2 {[%clk 0:00:12]} 56. Kxf5 {[%clk 0:00:15]}  e1=Q {[%clk 0:00:13]} 57. Kf6 {[%clk 0:00:15]}  Qe8 {[%clk 0:00:13]} 58. Ne7 {[%clk 0:00:15]}  b4 {[%clk 0:00:13]} 59. f5 {[%clk 0:00:15]}  b3 {[%clk 0:00:13]} 60. Ng6 {[%clk 0:00:15]}  b2 {[%clk 0:00:13]} 61. Kg7 {[%clk 0:00:15]}  b1=Q {[%clk 0:00:13]} 62. f6 {[%clk 0:00:15]}  Qbxg6# {[%clk 0:00:13]} 0-1


[Site "https://www.chess.com"]

[Event "Titled Tuesday Blitz January 03 Late 2023"]
[White "Rozman, Levy"]
[Black "Lenderman, Aleksandr"]
[WhiteFideId "2039877"]
[BlackFideId "2021285"]
[WhiteElo "2322"]
[BlackElo "2572"]
[Result "0-1"]
[Round "06"]
[TimeControl "180+2"]
[Date "2023.01.03"]
[WhiteClock "0:00:34"]
[BlackClock "0:01:41"]

1. d4 {[%clk 0:03:00]}  e6 {[%clk 0:02:59]} 2. Nf3 {[%clk 0:02:58]}  Nf6 {[%clk 0:02:56]} 3. Bg5 {[%clk 0:02:58]}  h6 {[%clk 0:02:54]} 4. Bxf6 {[%clk 0:02:54]}  Qxf6 {[%clk 0:02:53]} 5. e4 {[%clk 0:02:55]}  d5 {[%clk 0:02:52]} 6. Nbd2 {[%clk 0:02:53]}  Qd8 {[%clk 0:02:44]} 7. Bd3 {[%clk 0:02:49]}  Be7 {[%clk 0:02:43]} 8. O-O {[%clk 0:02:47]}  Nd7 {[%clk 0:02:42]} 9. c3 {[%clk 0:02:44]}  O-O {[%clk 0:02:41]} 10. Qe2 {[%clk 0:02:42]}  c5 {[%clk 0:02:40]} 11. e5 {[%clk 0:02:38]}  cxd4 {[%clk 0:02:33]} 12. cxd4 {[%clk 0:02:38]}  Nb8 {[%clk 0:02:33]} 13. Bc2 {[%clk 0:02:21]}  Nc6 {[%clk 0:02:33]} 14. Qd3 {[%clk 0:02:22]}  g6 {[%clk 0:02:32]} 15. Qe3 {[%clk 0:02:19]}  Kg7 {[%clk 0:02:31]} 16. a3 {[%clk 0:02:17]}  Qb6 {[%clk 0:02:30]} 17. Rab1 {[%clk 0:02:14]}  Bd7 {[%clk 0:02:22]} 18. b4 {[%clk 0:02:10]}  Rac8 {[%clk 0:02:20]} 19. Bd3 {[%clk 0:02:07]}  Nb8 {[%clk 0:02:18]} 20. Rfc1 {[%clk 0:01:58]}  Bb5 {[%clk 0:02:13]} 21. Nb3 {[%clk 0:01:48]}  Bxd3 {[%clk 0:02:11]} 22. Qxd3 {[%clk 0:01:49]}  Qa6 {[%clk 0:02:11]} 23. Qxa6 {[%clk 0:01:39]}  Nxa6 {[%clk 0:02:11]} 24. Nc5 {[%clk 0:01:39]}  Nxc5 {[%clk 0:02:09]} 25. bxc5 {[%clk 0:01:39]}  Rc7 {[%clk 0:02:09]} 26. Rc3 {[%clk 0:01:18]}  b6 {[%clk 0:02:05]} 27. c6 {[%clk 0:01:17]}  Rfc8 {[%clk 0:02:04]} 28. Rbc1 {[%clk 0:01:18]}  b5 {[%clk 0:02:03]} 29. Ne1 {[%clk 0:01:09]}  b4 {[%clk 0:01:58]} 30. axb4 {[%clk 0:00:52]}  Bxb4 {[%clk 0:01:59]} 31. Rb3 {[%clk 0:00:49]}  Bxe1 {[%clk 0:01:58]} 32. Rxe1 {[%clk 0:00:50]}  Rxc6 {[%clk 0:01:58]} 33. Ra3 {[%clk 0:00:45]}  R8c7 {[%clk 0:01:53]} 34. Kf1 {[%clk 0:00:42]}  Rc4 {[%clk 0:01:50]} 35. Rd1 {[%clk 0:00:43]}  Rb4 {[%clk 0:01:47]} 36. Rd2 {[%clk 0:00:39]}  Rcc4 {[%clk 0:01:42]} 37. Rxa7 {[%clk 0:00:36]}  Rxd4 {[%clk 0:01:42]} 38. Raa2 {[%clk 0:00:34]}  Rxd2 {[%clk 0:01:40]} 39. Rxd2 {[%clk 0:00:34]}  Re4 {[%clk 0:01:41]} 0-1


[Site "https://www.chess.com"]

[Event "Titled Tuesday Blitz January 03 Late 2023"]
[White "Fernandez Guillen, Ernesto J."]
[Black "Grigoriants, Sergey"]
[WhiteFideId "3512428"]
[BlackFideId "4130804"]
[WhiteElo "2477"]
[BlackElo "2562"]
[Result "1-0"]
[Round "06"]
[TimeControl "180+2"]
[Date "2023.01.03"]
[WhiteClock "0:00:10"]
[BlackClock "0:00:01"]

1. e4 {[%clk 0:02:59]}  c6 {[%clk 0:02:54]} 2. d4 {[%clk 0:02:58]}  d5 {[%clk 0:02:54]} 3. e5 {[%clk 0:02:59]}  Bf5 {[%clk 0:02:54]} 4. Bd3 {[%clk 0:02:58]}  Bxd3 {[%clk 0:02:52]} 5. Qxd3 {[%clk 0:02:59]}  e6 {[%clk 0:02:53]} 6. c3 {[%clk 0:02:59]}  c5 {[%clk 0:02:50]} 7. Ne2 {[%clk 0:03:00]}  Nc6 {[%clk 0:02:50]} 8. O-O {[%clk 0:02:57]}  Nge7 {[%clk 0:02:47]} 9. Nd2 {[%clk 0:02:50]}  Nf5 {[%clk 0:02:31]} 10. Nf3 {[%clk 0:02:45]}  cxd4 {[%clk 0:02:13]} 11. cxd4 {[%clk 0:02:45]}  Qb6 {[%clk 0:02:01]} 12. g4 {[%clk 0:02:35]}  Nfe7 {[%clk 0:01:58]} 13. Be3 {[%clk 0:02:35]}  h5 {[%clk 0:01:52]} 14. h3 {[%clk 0:02:34]}  hxg4 {[%clk 0:01:52]} 15. hxg4 {[%clk 0:02:35]}  Ng6 {[%clk 0:01:52]} 16. Kg2 {[%clk 0:02:35]}  Be7 {[%clk 0:01:50]} 17. Rh1 {[%clk 0:02:30]}  O-O-O {[%clk 0:01:49]} 18. Rxh8 {[%clk 0:02:29]}  Rxh8 {[%clk 0:01:48]} 19. b3 {[%clk 0:02:27]}  Kd7 {[%clk 0:01:45]} 20. Rd1 {[%clk 0:02:10]}  Nb4 {[%clk 0:01:35]} 21. Qb1 {[%clk 0:02:08]}  Qa6 {[%clk 0:01:31]} 22. Rd2 {[%clk 0:02:06]}  Rc8 {[%clk 0:01:28]} 23. Bg5 {[%clk 0:02:00]}  Bxg5 {[%clk 0:01:09]} 24. Nxg5 {[%clk 0:02:01]}  Ke7 {[%clk 0:01:09]} 25. a4 {[%clk 0:01:51]}  b6 {[%clk 0:00:56]} 26. f4 {[%clk 0:01:51]}  Rh8 {[%clk 0:00:29]} 27. f5 {[%clk 0:01:49]}  Nf8 {[%clk 0:00:20]} 28. Qf1 {[%clk 0:01:46]}  f6 {[%clk 0:00:15]} 29. fxe6 {[%clk 0:01:27]}  Qc8 {[%clk 0:00:12]} 30. Ng3 {[%clk 0:01:07]}  Qc3 {[%clk 0:00:08]} 31. Nf5+ {[%clk 0:01:00]}  Kd8 {[%clk 0:00:04]} 32. e7+ {[%clk 0:00:57]}  Kc7 {[%clk 0:00:04]} 33. Rd1 {[%clk 0:00:25]}  Ng6 {[%clk 0:00:05]} 34. Ne6+ {[%clk 0:00:19]}  Kb7 {[%clk 0:00:04]} 35. Nd8+ {[%clk 0:00:15]}  Ka8 {[%clk 0:00:01]} 36. Qf3 {[%clk 0:00:12]}  Qc2+ {[%clk 0:00:01]} 37. Kf1 {[%clk 0:00:11]}  Rh2 {[%clk 0:00:01]} 38. Nd6 {[%clk 0:00:10]} 1-0


[Site "https://www.chess.com"]

[Event "Titled Tuesday Blitz January 03 Late 2023"]
[White "Abrahamyan, Tatev"]
[Black "Zakhartsov, Vladimir"]
[WhiteFideId "13301918"]
[BlackFideId "4145097"]
[WhiteElo "2294"]
[BlackElo "2552"]
[Result "0-1"]
[Round "06"]
[TimeControl "180+2"]
[Date "2023.01.03"]
[WhiteClock "0:01:11"]
[BlackClock "0:02:06"]

1. e4 {[%clk 0:03:00]}  g6 {[%clk 0:02:57]} 2. d4 {[%clk 0:03:00]}  Bg7 {[%clk 0:02:56]} 3. Nc3 {[%clk 0:02:59]}  a6 {[%clk 0:02:55]} 4. f4 {[%clk 0:02:58]}  b5 {[%clk 0:02:55]} 5. Nf3 {[%clk 0:02:58]}  Bb7 {[%clk 0:02:55]} 6. Bd3 {[%clk 0:02:58]}  d6 {[%clk 0:02:56]} 7. O-O {[%clk 0:02:54]}  Nd7 {[%clk 0:02:54]} 8. a4 {[%clk 0:02:43]}  b4 {[%clk 0:02:52]} 9. Nb1 {[%clk 0:02:42]}  c5 {[%clk 0:02:51]} 10. Be3 {[%clk 0:02:34]}  Ngf6 {[%clk 0:02:44]} 11. Nbd2 {[%clk 0:02:29]}  Ng4 {[%clk 0:02:43]} 12. Qe1 {[%clk 0:02:15]}  Nxe3 {[%clk 0:02:42]} 13. Qxe3 {[%clk 0:02:15]}  cxd4 {[%clk 0:02:42]} 14. Qf2 {[%clk 0:02:14]}  O-O {[%clk 0:02:38]} 15. a5 {[%clk 0:02:04]}  e5 {[%clk 0:02:29]} 16. Bc4 {[%clk 0:01:51]}  exf4 {[%clk 0:02:18]} 17. Nxd4 {[%clk 0:01:43]}  Ne5 {[%clk 0:02:18]} 18. Bb3 {[%clk 0:01:43]}  Ng4 {[%clk 0:02:17]} 19. Qxf4 {[%clk 0:01:27]}  Bxd4+ {[%clk 0:02:16]} 20. Kh1 {[%clk 0:01:27]}  Ne5 {[%clk 0:02:15]} 21. Rad1 {[%clk 0:01:11]}  Qe7 {[%clk 0:02:06]} 0-1


[Site "https://www.chess.com"]

[Event "Titled Tuesday Blitz January 03 Late 2023"]
[White "Kanakaris, Georgios"]
[Black "Oparin, Grigoriy"]
[WhiteFideId "4209460"]
[BlackFideId "24125890"]
[WhiteElo "2391"]
[BlackElo "2667"]
[Result "0-1"]
[Round "06"]
[TimeControl "180+2"]
[Date "2023.01.03"]
[WhiteClock "0:00:03"]
[BlackClock "0:00:10"]

1. d4 {[%clk 0:03:00]}  d6 {[%clk 0:02:57]} 2. Nf3 {[%clk 0:03:00]}  g6 {[%clk 0:02:58]} 3. g3 {[%clk 0:03:01]}  Bg7 {[%clk 0:02:59]} 4. Bg2 {[%clk 0:03:01]}  Nf6 {[%clk 0:02:59]} 5. O-O {[%clk 0:03:02]}  O-O {[%clk 0:03:00]} 6. b3 {[%clk 0:03:02]}  Nc6 {[%clk 0:02:59]} 7. Bb2 {[%clk 0:03:02]}  Bf5 {[%clk 0:02:55]} 8. c4 {[%clk 0:03:01]}  Qd7 {[%clk 0:02:53]} 9. Nc3 {[%clk 0:02:57]}  Ne4 {[%clk 0:02:50]} 10. Nh4 {[%clk 0:02:36]}  Nxc3 {[%clk 0:02:45]} 11. Bxc3 {[%clk 0:02:36]}  Bh3 {[%clk 0:02:45]} 12. Qd2 {[%clk 0:02:37]}  Bxg2 {[%clk 0:02:42]} 13. Nxg2 {[%clk 0:02:38]}  d5 {[%clk 0:02:41]} 14. cxd5 {[%clk 0:02:19]}  Qxd5 {[%clk 0:02:42]} 15. Ne3 {[%clk 0:02:18]}  Qd7 {[%clk 0:02:35]} 16. d5 {[%clk 0:02:16]}  Ne5 {[%clk 0:02:29]} 17. Qb2 {[%clk 0:01:54]}  Qd6 {[%clk 0:02:04]} 18. Rac1 {[%clk 0:01:52]}  Rfd8 {[%clk 0:02:01]} 19. Nc4 {[%clk 0:01:32]}  Nxc4 {[%clk 0:01:59]} 20. bxc4 {[%clk 0:01:33]}  Bxc3 {[%clk 0:01:53]} 21. Rxc3 {[%clk 0:01:34]}  b6 {[%clk 0:01:51]} 22. e4 {[%clk 0:01:25]}  c6 {[%clk 0:01:51]} 23. Rd1 {[%clk 0:01:02]}  Rac8 {[%clk 0:01:49]} 24. Qa3 {[%clk 0:00:48]}  Qe5 {[%clk 0:01:46]} 25. Re3 {[%clk 0:00:42]}  Rc7 {[%clk 0:01:45]} 26. f4 {[%clk 0:00:35]}  Qh5 {[%clk 0:01:45]} 27. Qd3 {[%clk 0:00:31]}  cxd5 {[%clk 0:01:35]} 28. cxd5 {[%clk 0:00:32]}  Rdc8 {[%clk 0:01:35]} 29. Qe2 {[%clk 0:00:32]}  Qh3 {[%clk 0:01:26]} 30. Qg2 {[%clk 0:00:25]}  Qd7 {[%clk 0:01:24]} 31. e5 {[%clk 0:00:20]}  Rc2 {[%clk 0:01:21]} 32. Re2 {[%clk 0:00:20]}  Qa4 {[%clk 0:01:20]} 33. Red2 {[%clk 0:00:15]}  Rxa2 {[%clk 0:01:06]} 34. d6 {[%clk 0:00:12]}  exd6 {[%clk 0:01:07]} 35. exd6 {[%clk 0:00:12]}  Qxd1+ {[%clk 0:00:52]} 36. Rxd1 {[%clk 0:00:13]}  Rxg2+ {[%clk 0:00:52]} 37. Kxg2 {[%clk 0:00:14]}  Kg7 {[%clk 0:00:53]} 38. Ra1 {[%clk 0:00:12]}  a5 {[%clk 0:00:50]} 39. Rb1 {[%clk 0:00:12]}  Rb8 {[%clk 0:00:42]} 40. d7 {[%clk 0:00:09]}  Rd8 {[%clk 0:00:43]} 41. Rxb6 {[%clk 0:00:09]}  Rxd7 {[%clk 0:00:43]} 42. Ra6 {[%clk 0:00:09]}  Rd2+ {[%clk 0:00:42]} 43. Kh3 {[%clk 0:00:09]}  Ra2 {[%clk 0:00:41]} 44. g4 {[%clk 0:00:10]}  Ra3+ {[%clk 0:00:40]} 45. Kg2 {[%clk 0:00:10]}  h5 {[%clk 0:00:38]} 46. gxh5 {[%clk 0:00:09]}  gxh5 {[%clk 0:00:38]} 47. h4 {[%clk 0:00:09]}  a4 {[%clk 0:00:37]} 48. Kh2 {[%clk 0:00:08]}  Ra1 {[%clk 0:00:37]} 49. Kg2 {[%clk 0:00:08]}  a3 {[%clk 0:00:37]} 50. f5 {[%clk 0:00:07]}  a2 {[%clk 0:00:31]} 51. Kh2 {[%clk 0:00:07]}  Kf8 {[%clk 0:00:31]} 52. f6 {[%clk 0:00:08]}  Ke8 {[%clk 0:00:30]} 53. Kg2 {[%clk 0:00:07]}  Kd7 {[%clk 0:00:30]} 54. Kh2 {[%clk 0:00:06]}  Kc7 {[%clk 0:00:30]} 55. Kg2 {[%clk 0:00:06]}  Kb7 {[%clk 0:00:31]} 56. Ra3 {[%clk 0:00:07]}  Kc6 {[%clk 0:00:31]} 57. Ra7 {[%clk 0:00:06]}  Kd5 {[%clk 0:00:31]} 58. Ra6 {[%clk 0:00:05]}  Ke5 {[%clk 0:00:30]} 59. Kh2 {[%clk 0:00:05]}  Kf4 {[%clk 0:00:30]} 60. Kg2 {[%clk 0:00:05]}  Kg4 {[%clk 0:00:31]} 61. Ra4+ {[%clk 0:00:05]}  Kf5 {[%clk 0:00:31]} 62. Ra6 {[%clk 0:00:05]}  Kg6 {[%clk 0:00:31]} 63. Kh2 {[%clk 0:00:05]}  Kf5 {[%clk 0:00:28]} 64. Kg2 {[%clk 0:00:04]}  Ke4 {[%clk 0:00:28]} 65. Ra5 {[%clk 0:00:04]}  Kd3 {[%clk 0:00:27]} 66. Ra7 {[%clk 0:00:04]}  Kd4 {[%clk 0:00:11]} 67. Ra5 {[%clk 0:00:03]}  Ke4 {[%clk 0:00:10]} 0-1


[Site "https://www.chess.com"]

[Event "Titled Tuesday Blitz January 03 Late 2023"]
[White "Tregubov, Pavel V."]
[Black "Indjic, Aleksandar"]
[WhiteFideId "4115341"]
[BlackFideId "911925"]
[WhiteElo "2553"]
[BlackElo "2618"]
[Result "0-1"]
[Round "06"]
[TimeControl "180+2"]
[Date "2023.01.03"]
[WhiteClock "0:00:05"]
[BlackClock "0:00:08"]

1. e4 {[%clk 0:03:00]}  c5 {[%clk 0:02:58]} 2. Nf3 {[%clk 0:03:00]}  d6 {[%clk 0:02:59]} 3. Bb5+ {[%clk 0:02:59]}  Nd7 {[%clk 0:02:58]} 4. Ba4 {[%clk 0:02:59]}  Nf6 {[%clk 0:02:56]} 5. O-O {[%clk 0:02:57]}  e6 {[%clk 0:02:46]} 6. Re1 {[%clk 0:02:54]}  Be7 {[%clk 0:02:45]} 7. c3 {[%clk 0:02:54]}  a6 {[%clk 0:02:41]} 8. d4 {[%clk 0:02:54]}  b5 {[%clk 0:02:40]} 9. Bc2 {[%clk 0:02:53]}  Bb7 {[%clk 0:02:35]} 10. Nbd2 {[%clk 0:02:53]}  Qc7 {[%clk 0:02:31]} 11. e5 {[%clk 0:02:47]}  dxe5 {[%clk 0:02:26]} 12. dxe5 {[%clk 0:02:46]}  Ng4 {[%clk 0:02:26]} 13. Qe2 {[%clk 0:02:42]}  h5 {[%clk 0:01:59]} 14. h3 {[%clk 0:02:40]}  Nh6 {[%clk 0:01:58]} 15. Ne4 {[%clk 0:02:41]}  Nf5 {[%clk 0:01:52]} 16. Bg5 {[%clk 0:02:39]}  Bd5 {[%clk 0:01:39]} 17. Bxe7 {[%clk 0:02:31]}  Kxe7 {[%clk 0:01:40]} 18. Qd2 {[%clk 0:02:25]}  Qc6 {[%clk 0:01:39]} 19. Qg5+ {[%clk 0:02:17]}  Kf8 {[%clk 0:01:39]} 20. Rad1 {[%clk 0:02:09]}  Nb6 {[%clk 0:01:33]} 21. Nh4 {[%clk 0:01:35]}  Nxh4 {[%clk 0:01:30]} 22. Qxh4 {[%clk 0:01:35]}  Rh6 {[%clk 0:01:27]} 23. Qf4 {[%clk 0:01:32]}  Kg8 {[%clk 0:01:14]} 24. Ng5 {[%clk 0:01:30]}  Rf8 {[%clk 0:01:12]} 25. f3 {[%clk 0:01:28]}  Qc7 {[%clk 0:01:08]} 26. Ne4 {[%clk 0:01:17]}  h4 {[%clk 0:01:00]} 27. b3 {[%clk 0:01:06]}  f5 {[%clk 0:00:52]} 28. Nd6 {[%clk 0:00:55]}  c4 {[%clk 0:00:52]} 29. bxc4 {[%clk 0:00:48]}  bxc4 {[%clk 0:00:49]} 30. Rb1 {[%clk 0:00:43]}  Nc8 {[%clk 0:00:37]} 31. Red1 {[%clk 0:00:33]}  Nxd6 {[%clk 0:00:32]} 32. exd6 {[%clk 0:00:33]}  Qc5+ {[%clk 0:00:33]} 33. Kh1 {[%clk 0:00:28]}  Rd8 {[%clk 0:00:33]} 34. d7 {[%clk 0:00:13]}  Rxd7 {[%clk 0:00:16]} 35. Rb8+ {[%clk 0:00:13]}  Kh7 {[%clk 0:00:15]} 36. Bxf5+ {[%clk 0:00:13]}  exf5 {[%clk 0:00:09]} 37. Qxf5+ {[%clk 0:00:13]}  Rg6 {[%clk 0:00:09]} 38. Qxd7 {[%clk 0:00:12]}  Qf2 {[%clk 0:00:08]} 39. Rg1 {[%clk 0:00:05]}  Bxf3 {[%clk 0:00:08]} 0-1


[Site "https://www.chess.com"]

[Event "Titled Tuesday Blitz January 03 Late 2023"]
[White "Mardov, Dimitar"]
[Black "Khripachenko, Alexander"]
[WhiteFideId "30919495"]
[BlackFideId "54184975"]
[WhiteElo "2456"]
[BlackElo "2110"]
[Result "1-0"]
[Round "06"]
[TimeControl "180+2"]
[Date "2023.01.03"]
[WhiteClock "0:01:18"]
[BlackClock "0:00:11"]

1. d4 {[%clk 0:03:00]}  d5 {[%clk 0:02:58]} 2. c4 {[%clk 0:02:57]}  e6 {[%clk 0:02:58]} 3. Nc3 {[%clk 0:02:57]}  Be7 {[%clk 0:02:59]} 4. Nf3 {[%clk 0:02:57]}  Nf6 {[%clk 0:02:57]} 5. Bf4 {[%clk 0:02:57]}  O-O {[%clk 0:02:57]} 6. e3 {[%clk 0:02:58]}  b6 {[%clk 0:02:58]} 7. Rc1 {[%clk 0:02:56]}  Bb7 {[%clk 0:02:58]} 8. cxd5 {[%clk 0:02:56]}  Nxd5 {[%clk 0:02:58]} 9. Nxd5 {[%clk 0:02:56]}  Qxd5 {[%clk 0:02:59]} 10. a3 {[%clk 0:02:56]}  c5 {[%clk 0:02:57]} 11. dxc5 {[%clk 0:02:43]}  Qxd1+ {[%clk 0:02:56]} 12. Rxd1 {[%clk 0:02:44]}  Bxc5 {[%clk 0:02:54]} 13. Bc4 {[%clk 0:02:42]}  a5 {[%clk 0:02:06]} 14. Ke2 {[%clk 0:02:39]}  Nc6 {[%clk 0:02:04]} 15. Rd7 {[%clk 0:02:37]}  Ba6 {[%clk 0:01:43]} 16. Bxa6 {[%clk 0:02:35]}  Rxa6 {[%clk 0:01:44]} 17. Rc1 {[%clk 0:02:33]}  Rc8 {[%clk 0:01:38]} 18. Ng5 {[%clk 0:02:22]}  Ra7 {[%clk 0:01:33]} 19. Rcd1 {[%clk 0:02:09]}  Be7 {[%clk 0:01:20]} 20. Ne4 {[%clk 0:01:59]}  e5 {[%clk 0:01:01]} 21. Bg3 {[%clk 0:01:49]}  f5 {[%clk 0:00:45]} 22. Nc3 {[%clk 0:01:46]}  Nd4+ {[%clk 0:00:16]} 23. R1xd4 {[%clk 0:01:37]}  exd4 {[%clk 0:00:17]} 24. Rxa7 {[%clk 0:01:21]}  dxc3 {[%clk 0:00:17]} 25. bxc3 {[%clk 0:01:22]}  Bf6 {[%clk 0:00:17]} 26. Bc7 {[%clk 0:01:19]}  Bxc3 {[%clk 0:00:10]} 27. Bxb6 {[%clk 0:01:19]}  Rb8 {[%clk 0:00:10]} 28. Bxa5 {[%clk 0:01:16]}  Rb2+ {[%clk 0:00:10]} 29. Kf3 {[%clk 0:01:16]}  Bxa5 {[%clk 0:00:10]} 30. Rxa5 {[%clk 0:01:17]}  g6 {[%clk 0:00:10]} 31. Ra7 {[%clk 0:01:17]}  Ra2 {[%clk 0:00:10]} 32. a4 {[%clk 0:01:17]}  h6 {[%clk 0:00:09]} 33. h4 {[%clk 0:01:17]}  g5 {[%clk 0:00:10]} 34. hxg5 {[%clk 0:01:17]}  hxg5 {[%clk 0:00:11]} 35. Ra5 {[%clk 0:01:18]} 1-0


[Site "https://www.chess.com"]